[Event "BPB Limburg Open 2019 Group A"]
[Site "Maastricht, Netherlands"]
[Date "2019.06.09"]
[Round "4.12"]
[White "Vandenbussche, Thibaut"]
[Black "Warmerdam, Max"]
[Result "1/2-1/2"]
[TimeControl "2h + 15 sec/move"]
[WhiteFideId "204412"]
[BlackFideId "1048104"]
[WhiteElo "2442"]
[BlackElo "2475"]

1. e4 {[%clk 02:00:29]} {[%emt 00:39:08]} c5 {[%clk 02:00:24]} {[%emt
00:00:06]} 2. Nf3 {[%clk 02:00:39]} {[%emt 00:00:05]} d6 {[%clk 02:00:33]}
{[%emt 00:00:05]} 3. Bb5+ {[%clk 02:00:36]} {[%emt 00:00:18]} Bd7 {[%clk
02:00:18]} {[%emt 00:00:30]} 4. Bxd7+ {[%clk 02:00:45]} {[%emt 00:00:06]} Qxd7
{[%clk 02:00:26]} {[%emt 00:00:07]} 5. c4 {[%clk 02:00:51]} {[%emt 00:00:09]}
Nf6 {[%clk 02:00:27]} {[%emt 00:00:15]} 6. Nc3 {[%clk 02:00:52]} {[%emt
00:00:14]} g6 {[%clk 02:00:35]} {[%emt 00:00:07]} 7. d4 {[%clk 02:00:01]}
{[%emt 00:01:07]} cxd4 {[%clk 02:00:13]} {[%emt 00:00:37]} 8. Nxd4 {[%clk
02:00:06]} {[%emt 00:00:09]} Bg7 {[%clk 02:00:24]} {[%emt 00:00:04]} 9. b3
{[%clk 01:59:21]} {[%emt 00:01:01]} O-O {[%clk 01:58:58]} {[%emt 00:01:41]} 10.
Bb2 {[%clk 01:58:51]} {[%emt 00:00:44]} Nc6 {[%clk 01:57:35]} {[%emt 00:01:38]}
11. O-O {[%clk 01:58:15]} {[%emt 00:00:51]} a6 {[%clk 01:52:52]} {[%emt
00:04:58]} 12. Nxc6 {[%clk 01:56:19]} {[%emt 00:02:11]} Qxc6 {[%clk 01:52:33]}
{[%emt 00:00:34]} 13. Nd5 {[%clk 01:54:32]} {[%emt 00:02:03]} Nxd5 {[%clk
01:48:21]} {[%emt 00:04:27]} 14. exd5 {[%clk 01:54:39]} {[%emt 00:00:08]} Qc5
{[%clk 01:45:06]} {[%emt 00:03:31]} 15. Bxg7 {[%clk 01:54:46]} {[%emt
00:00:08]} Kxg7 {[%clk 01:45:18]} {[%emt 00:00:02]} 16. Re1 {[%clk 01:54:24]}
{[%emt 00:00:36]} Rae8 {[%clk 01:35:01]} {[%emt 00:10:32]} 17. Qd2 {[%clk
01:49:34]} {[%emt 00:05:05]} e5 {[%clk 01:32:47]} {[%emt 00:02:29]} 18. dxe6
{[%clk 01:48:46]} {[%emt 00:01:03]} Rxe6 {[%clk 01:32:37]} {[%emt 00:00:25]} 19.
Rad1 {[%clk 01:25:38]} {[%emt 00:23:24]} Rfe8 {[%clk 01:32:13]} {[%emt
00:00:39]} 20. Rxe6 {[%clk 01:24:54]} {[%emt 00:01:00]} Rxe6 {[%clk 01:32:25]}
{[%emt 00:00:03]} 21. g3 {[%clk 01:21:06]} {[%emt 00:04:03]} Qf5 {[%clk
01:29:55]} {[%emt 00:02:44]} 22. Qc3+ {[%clk 01:16:01]} {[%emt 00:05:20]} Kg8
{[%clk 01:29:14]} {[%emt 00:00:56]} 23. Kg2 {[%clk 01:12:54]} {[%emt 00:03:22]}
Qe4+ {[%clk 01:24:26]} {[%emt 00:05:03]} 24. Qf3 {[%clk 01:11:27]} {[%emt
00:01:41]} Qxf3+ {[%clk 01:22:57]} {[%emt 00:01:45]} 25. Kxf3 {[%clk 01:11:34]}
{[%emt 00:00:08]} Kf8 {[%clk 01:23:03]} {[%emt 00:00:09]} 26. Rd4 {[%clk
01:02:47]} {[%emt 00:09:03]} Ke7 {[%clk 01:20:28]} {[%emt 00:02:50]} 27. Re4
{[%clk 00:53:25]} {[%emt 00:09:36]} Re5 {[%clk 01:10:45]} {[%emt 00:09:58]} 28.
c5 {[%clk 00:47:17]} {[%emt 00:06:23]} Ke6 {[%clk 01:07:52]} {[%emt 00:03:08]}
29. Rb4 {[%clk 00:38:21]} {[%emt 00:09:11]} Rxc5 {[%clk 01:04:13]} {[%emt
00:03:55]} 30. Rxb7 {[%clk 00:38:28]} {[%emt 00:00:07]} Rc3+ {[%clk 01:04:11]}
{[%emt 00:00:17]} 31. Kg2 {[%clk 00:37:35]} {[%emt 00:01:08]} Rc2 {[%clk
01:02:57]} {[%emt 00:01:30]} 32. a4 {[%clk 00:37:12]} {[%emt 00:00:38]} Rc3
{[%clk 00:57:38]} {[%emt 00:05:33]} 33. b4 {[%clk 00:32:35]} {[%emt 00:04:52]}
Ke5 {[%emt 00:00:23]} 1/2-1/2

[ePGN "0.1;DGT LiveChess/2.2.4"]

[Event "BPB Limburg Open 2019 Group A"]
[Site "Maastricht, Netherlands"]
[Date "2019.06.09"]
[Round "5.1"]
[White "Bok, Benjamin"]
[Black "Van Foreest, Lucas"]
[Result "1-0"]
[TimeControl "2h + 15 sec/move"]
[WhiteFideId "1017063"]
[BlackFideId "1039792"]
[WhiteElo "2638"]
[BlackElo "2522"]

1. c4 {[%clk 01:58:35]} {[%emt 00:01:54]} Nf6 {[%clk 01:55:38]} {[%emt
00:04:52]} 2. Nf3 {[%clk 01:58:18]} {[%emt 00:00:31]} e6 {[%clk 01:55:11]}
{[%emt 00:00:42]} 3. g3 {[%clk 01:58:19]} {[%emt 00:00:14]} Be7 {[%clk
01:55:19]} {[%emt 00:00:08]} 4. Bg2 {[%clk 01:58:30]} {[%emt 00:00:04]} d5
{[%clk 01:55:22]} {[%emt 00:00:12]} 5. O-O {[%clk 01:58:35]} {[%emt 00:00:09]}
O-O {[%clk 01:55:35]} {[%emt 00:00:03]} 6. b3 {[%clk 01:58:45]} {[%emt
00:00:06]} c5 {[%clk 01:55:44]} {[%emt 00:00:05]} 7. cxd5 {[%clk 01:58:56]}
{[%emt 00:00:04]} Nxd5 {[%clk 01:55:54]} {[%emt 00:00:05]} 8. Bb2 {[%clk
01:59:07]} {[%emt 00:00:04]} Nc6 {[%clk 01:55:57]} {[%emt 00:00:13]} 9. d4
{[%clk 01:59:18]} {[%emt 00:00:04]} cxd4 {[%clk 01:56:06]} {[%emt 00:00:06]} 10.
Nxd4 {[%clk 01:59:28]} {[%emt 00:00:04]} Bd7 {[%clk 01:56:19]} {[%emt
00:00:02]} 11. Na3 {[%clk 01:59:35]} {[%emt 00:00:08]} Nxd4 {[%clk 01:52:37]}
{[%emt 00:03:58]} 12. Qxd4 {[%clk 01:59:41]} {[%emt 00:00:09]} Bf6 {[%clk
01:52:50]} {[%emt 00:00:02]} 13. Qd2 {[%clk 01:59:42]} {[%emt 00:00:15]} Bc6
{[%clk 01:53:01]} {[%emt 00:00:04]} 14. Rfd1 {[%clk 01:56:08]} {[%emt
00:03:48]} Qe7 {[%clk 01:35:31]} {[%emt 00:17:45]} 15. Bxf6 {[%clk 01:56:10]}
{[%emt 00:00:13]} Qxf6 {[%clk 01:34:31]} {[%emt 00:01:15]} 16. Qe1 {[%clk
01:56:19]} {[%emt 00:00:06]} Qe7 {[%clk 01:26:30]} {[%emt 00:08:17]} 17. Nc2
{[%clk 01:35:32]} {[%emt 00:21:02]} b6 {[%clk 01:19:44]} {[%emt 00:07:01]} 18.
Rac1 {[%clk 01:19:05]} {[%emt 00:16:43]} Rac8 {[%clk 01:15:40]} {[%emt
00:04:18]} 19. e4 {[%clk 01:17:27]} {[%emt 00:01:53]} Nc7 {[%clk 01:02:16]}
{[%emt 00:13:38]} 20. Qb4 {[%clk 01:15:22]} {[%emt 00:02:21]} Qe8 {[%clk
00:39:28]} {[%emt 00:23:02]} 21. Nd4 {[%clk 01:04:02]} {[%emt 00:11:36]} Bb7
{[%clk 00:37:36]} {[%emt 00:02:08]} 22. Qa3 {[%clk 01:02:08]} {[%emt 00:02:09]}
Na6 {[%clk 00:25:25]} {[%emt 00:12:26]} 23. e5 {[%clk 00:52:59]} {[%emt
00:09:24]} Bxg2 {[%clk 00:22:55]} {[%emt 00:02:43]} 24. Kxg2 {[%clk 00:52:02]}
{[%emt 00:01:13]} Rxc1 {[%clk 00:18:53]} {[%emt 00:04:17]} 25. Rxc1 {[%clk
00:52:11]} {[%emt 00:00:06]} Qa8+ {[%clk 00:18:50]} {[%emt 00:00:17]} 26. Kg1
{[%clk 00:51:24]} {[%emt 00:01:03]} Rc8 {[%clk 00:16:42]} {[%emt 00:02:23]} 27.
Rxc8+ {[%clk 00:22:14]} {[%emt 00:29:26]} Qxc8 {[%clk 00:16:56]} 28. Nb5 {[%clk
00:14:17]} {[%emt 00:08:12]} Nb8 {[%clk 00:17:08]} {[%emt 00:00:03]} 29. Nxa7
{[%clk 00:09:58]} {[%emt 00:04:34]} Qc3 {[%clk 00:17:20]} {[%emt 00:00:03]} 30.
Qa4 {[%clk 00:08:06]} {[%emt 00:02:08]} g5 {[%clk 00:15:24]} {[%emt 00:02:10]}
31. Qe4 {[%clk 00:03:54]} {[%emt 00:04:28]} Kg7 {[%clk 00:12:16]} {[%emt
00:03:23]} 32. Qe3 {[%clk 00:00:28]} {[%emt 00:03:41]} Qa1+ {[%clk 00:11:54]}
{[%emt 00:00:37]} 33. Kg2 {[%clk 00:00:41]} {[%emt 00:00:02]} h6 {[%clk
00:12:07]} {[%emt 00:00:02]} 34. a4 {[%clk 00:00:23]} {[%emt 00:00:33]} Qb1
{[%clk 00:08:38]} {[%emt 00:03:43]} 35. Nc8 {[%clk 00:00:20]} {[%emt 00:00:18]}
Nd7 {[%clk 00:07:55]} {[%emt 00:00:59]} 36. Nxb6 {[%clk 00:00:21]} {[%emt
00:00:14]} Nxb6 {[%clk 00:07:30]} {[%emt 00:00:39]} 37. Qxb6 {[%clk 00:00:35]}
{[%emt 00:00:01]} Qe4+ {[%clk 00:07:40]} {[%emt 00:00:05]} 38. f3 {[%clk
00:00:34]} {[%emt 00:00:16]} Qc2+ {[%clk 00:07:48]} {[%emt 00:00:06]} 39. Qf2
{[%clk 00:00:45]} {[%emt 00:00:04]} Qxb3 {[%clk 00:08:02]} {[%emt 00:00:02]} 40.
a5 {[%clk 00:00:59]} {[%emt 00:00:02]} Qc4 {[%clk 00:05:43]} {[%emt 00:02:34]}
41. g4 {[%clk 00:00:55]} {[%emt 00:00:19]} h5 {[%clk 00:05:13]} {[%emt
00:00:45]} 42. Qe3 {[%clk 00:00:20]} {[%emt 00:00:49]} Qa2+ {[%clk 00:04:32]}
{[%emt 00:00:56]} 43. Kg3 {[%clk 00:00:23]} {[%emt 00:00:13]} Kg6 {[%clk
00:03:53]} {[%emt 00:00:54]} 44. gxh5+ {[%clk 00:00:19]} {[%emt 00:00:19]} Kxh5
{[%clk 00:03:56]} {[%emt 00:00:11]} 45. Qd3 {[%clk 00:00:18]} {[%emt 00:00:16]}
Kh6 {[%clk 00:04:10]} {[%emt 00:00:01]} 46. Qd8 {[%clk 00:00:18]} {[%emt
00:00:15]} Qc4 {[%clk 00:03:47]} {[%emt 00:00:37]} 47. Qf6+ {[%clk 00:00:23]}
{[%emt 00:00:10]} Kh5 {[%clk 00:03:53]} {[%emt 00:00:10]} 48. Qxf7+ {[%clk
00:00:34]} {[%emt 00:00:04]} Kh6 {[%clk 00:04:07]} 49. Qf6+ {[%clk 00:00:18]}
{[%emt 00:00:31]} Kh5 {[%clk 00:04:21]} 50. Qf7+ {[%clk 00:00:18]} {[%emt
00:00:15]} Kh6 {[%clk 00:04:35]} {[%emt 00:00:01]} 51. Qf8+ {[%clk 00:00:17]}
{[%emt 00:00:16]} Kh5 {[%clk 00:04:40]} {[%emt 00:00:08]} 52. Qe8+ {[%clk
00:00:20]} {[%emt 00:00:14]} Kh6 {[%clk 00:04:54]} {[%emt 00:00:01]} 53. Qh8+
{[%clk 00:00:25]} {[%emt 00:00:09]} Kg6 {[%clk 00:05:07]} {[%emt 00:00:01]} 54.
Qg8+ {[%clk 00:00:17]} {[%emt 00:00:24]} Kf5 {[%clk 00:04:59]} {[%emt
00:00:23]} 55. Qh7+ {[%clk 00:00:21]} {[%emt 00:00:11]} 1-0

[Event "BPB Limburg Open 2019 Group A"]
[Site "Maastricht, Netherlands"]
[Date "2019.06.09"]
[Round "5.2"]
[White "Nasuta, Grzegorz"]
[Black "Donchenko, Alexander"]
[Result "1-0"]
[TimeControl "2h + 15 sec/move"]
[WhiteFideId "1141686"]
[BlackFideId "24603295"]
[WhiteElo "2518"]
[BlackElo "2618"]

1. e4 {[%clk 01:57:20]} {[%emt 00:02:58]} c5 {[%clk 02:00:22]} {[%emt
00:00:19]} 2. Nc3 {[%clk 01:57:13]} {[%emt 00:00:22]} d6 {[%clk 01:59:57]}
{[%emt 00:00:40]} 3. f4 {[%clk 01:57:07]} {[%emt 00:00:21]} g6 {[%clk
01:59:34]} {[%emt 00:00:38]} 4. Nf3 {[%clk 01:57:14]} {[%emt 00:00:09]} Bg7
{[%clk 01:59:28]} {[%emt 00:00:21]} 5. Bc4 {[%clk 01:57:17]} {[%emt 00:00:11]}
Nc6 {[%clk 01:59:18]} {[%emt 00:00:25]} 6. O-O {[%clk 01:57:24]} {[%emt
00:00:08]} e6 {[%clk 01:59:08]} {[%emt 00:00:25]} 7. d4 {[%clk 01:57:15]}
{[%emt 00:00:24]} cxd4 {[%clk 01:58:11]} {[%emt 00:01:12]} 8. Nb5 {[%clk
01:57:24]} {[%emt 00:00:06]} Nge7 {[%clk 01:57:39]} {[%emt 00:00:47]} 9. Bb3
{[%clk 01:57:31]} {[%emt 00:00:09]} O-O {[%clk 01:51:14]} {[%emt 00:06:40]} 10.
Nbxd4 {[%clk 01:57:32]} {[%emt 00:00:13]} b6 {[%clk 01:44:04]} {[%emt
00:07:26]} 11. c3 {[%clk 01:53:19]} {[%emt 00:04:28]} Bb7 {[%clk 01:40:16]}
{[%emt 00:04:02]} 12. Nxe6 {[%clk 01:33:33]} {[%emt 00:20:02]} fxe6 {[%clk
01:40:04]} {[%emt 00:00:27]} 13. Ng5 {[%clk 01:33:42]} {[%emt 00:00:06]} d5
{[%clk 01:26:38]} {[%emt 00:13:41]} 14. Nxe6 {[%clk 01:28:43]} {[%emt
00:05:13]} Qd6 {[%clk 01:26:40]} {[%emt 00:00:14]} 15. c4 {[%clk 01:05:41]}
{[%emt 00:23:18]} Bc8 {[%clk 01:04:24]} {[%emt 00:22:30]} 16. Nxf8 {[%clk
00:29:47]} {[%emt 00:36:09]} Qc5+ {[%clk 01:04:08]} {[%emt 00:00:31]} 17. Kh1
{[%clk 00:29:56]} {[%emt 00:00:06]} dxc4 {[%clk 01:04:11]} {[%emt 00:00:12]} 18.
Bc2 {[%clk 00:16:43]} {[%emt 00:13:28]} Bxf8 {[%clk 01:01:47]} {[%emt
00:02:39]} 19. f5 {[%clk 00:07:07]} {[%emt 00:09:51]} Ne5 {[%clk 00:58:25]}
{[%emt 00:03:36]} 20. Bf4 {[%clk 00:04:59]} {[%emt 00:02:23]} Bb7 {[%clk
00:57:03]} {[%emt 00:01:37]} 21. Qe1 {[%clk 00:05:03]} {[%emt 00:00:12]} Bg7
{[%clk 00:53:45]} {[%emt 00:03:33]} 22. Qh4 {[%clk 00:03:32]} {[%emt 00:01:45]}
Rf8 {[%clk 00:43:29]} {[%emt 00:10:31]} 23. Rad1 {[%clk 00:03:47]} {[%emt
00:00:01]} Bf6 {[%clk 00:38:51]} {[%emt 00:04:53]} 24. Qg3 {[%clk 00:04:01]}
{[%emt 00:00:01]} Kg7 {[%clk 00:35:27]} {[%emt 00:03:39]} 25. Qh3 {[%clk
00:01:26]} {[%emt 00:02:50]} g5 {[%clk 00:34:43]} {[%emt 00:00:59]} 26. Qg3
{[%clk 00:01:21]} {[%emt 00:00:21]} h6 {[%clk 00:33:52]} {[%emt 00:01:05]} 27.
Be3 {[%clk 00:01:35]} Qc7 {[%clk 00:31:27]} {[%emt 00:02:41]} 28. Rd2 {[%clk
00:00:33]} {[%emt 00:01:17]} Bc6 {[%clk 00:24:16]} {[%emt 00:07:26]} 29. Rfd1
{[%clk 00:00:43]} {[%emt 00:00:05]} Nc8 {[%clk 00:22:34]} {[%emt 00:01:56]} 30.
h4 {[%clk 00:00:29]} {[%emt 00:00:29]} Qe7 {[%clk 00:21:31]} {[%emt 00:01:18]}
31. Kg1 {[%clk 00:00:43]} {[%emt 00:00:01]} Kf7 {[%clk 00:20:37]} {[%emt
00:01:09]} 32. hxg5 {[%clk 00:00:54]} {[%emt 00:00:04]} hxg5 {[%clk 00:20:43]}
{[%emt 00:00:07]} 33. Kf2 {[%clk 00:01:06]} {[%emt 00:00:03]} Rh8 {[%clk
00:20:27]} {[%emt 00:00:31]} 34. Kg1 {[%clk 00:00:35]} {[%emt 00:00:47]} Kg7
{[%clk 00:19:04]} {[%emt 00:01:37]} 35. a3 {[%clk 00:00:46]} {[%emt 00:00:04]}
b5 {[%clk 00:17:03]} {[%emt 00:02:16]} 36. Bb1 {[%clk 00:00:56]} {[%emt
00:00:05]} a5 {[%clk 00:16:35]} {[%emt 00:00:43]} 37. Rd4 {[%clk 00:00:29]}
{[%emt 00:00:42]} b4 {[%clk 00:15:30]} {[%emt 00:01:20]} 38. axb4 {[%clk
00:00:44]} {[%emt 00:00:01]} axb4 {[%clk 00:15:40]} {[%emt 00:00:04]} 39. b3
{[%clk 00:00:52]} {[%emt 00:00:06]} c3 {[%clk 00:14:55]} {[%emt 00:01:01]} 40.
Bc2 {[%clk 00:01:07]} {[%emt 00:00:01]} Rh5 {[%clk 00:11:29]} {[%emt 00:03:40]}
41. Rd8 {[%clk 00:00:53]} {[%emt 00:00:29]} Qb7 {[%clk 00:11:30]} {[%emt
00:00:14]} 42. Bd4 {[%clk 00:00:29]} {[%emt 00:00:39]} Nf7 {[%clk 00:04:21]}
{[%emt 00:07:24]} 43. Bxf6+ {[%clk 00:00:21]} {[%emt 00:00:23]} Kxf6 {[%clk
00:04:35]} {[%emt 00:00:01]} 44. e5+ {[%clk 00:00:35]} {[%emt 00:00:01]} Kg7
{[%clk 00:04:27]} {[%emt 00:00:22]} 45. f6+ {[%clk 00:00:40]} {[%emt 00:00:10]}
Kh6 {[%clk 00:04:41]} {[%emt 00:00:02]} 46. Qd3 {[%clk 00:00:39]} {[%emt
00:00:16]} Qa7+ {[%clk 00:04:44]} {[%emt 00:00:12]} 47. Rd4 {[%clk 00:00:52]}
{[%emt 00:00:02]} Nxe5 {[%clk 00:04:56]} {[%emt 00:00:03]} 48. Qf5 {[%clk
00:00:42]} {[%emt 00:00:24]} Qc7 {[%clk 00:04:07]} {[%emt 00:01:04]} 49. Rd7
{[%clk 00:00:27]} {[%emt 00:00:30]} Nf3+ {[%clk 00:00:24]} {[%emt 00:03:58]} 50.
Kf2 {[%clk 00:00:42]} Be4 {[%clk 00:00:23]} {[%emt 00:00:16]} 51. Rxc7 {[%clk
00:00:42]} {[%emt 00:00:15]} 1-0

[Event "BPB Limburg Open 2019 Group A"]
[Site "Maastricht, Netherlands"]
[Date "2019.06.09"]
[Round "5.3"]
[White "Van Foreest, Jorden"]
[Black "Gurevich, Mikhail"]
[Result "0-1"]
[TimeControl "2h + 15 sec/move"]
[WhiteFideId "1039784"]
[BlackFideId "200930"]
[WhiteElo "2610"]
[BlackElo "2579"]

1. e4 {[%emt 00:00:06]} d6 {[%clk 01:53:38]} {[%emt 00:06:48]} 2. d4 {[%clk
02:00:33]} {[%emt 00:00:10]} Nf6 {[%clk 01:53:45]} {[%emt 00:00:08]} 3. Nc3
{[%clk 02:00:44]} {[%emt 00:00:04]} g6 {[%clk 01:53:55]} {[%emt 00:00:05]} 4.
f4 {[%clk 02:00:56]} {[%emt 00:00:03]} Bg7 {[%clk 01:54:06]} {[%emt 00:00:04]}
5. a3 {[%clk 02:01:08]} {[%emt 00:00:03]} O-O {[%clk 01:52:58]} {[%emt
00:01:22]} 6. Nf3 {[%clk 02:01:14]} {[%emt 00:00:09]} Nc6 {[%clk 01:52:03]}
{[%emt 00:01:10]} 7. Be2 {[%clk 02:01:13]} {[%emt 00:00:17]} Bg4 {[%clk
01:46:23]} {[%emt 00:05:54]} 8. d5 {[%clk 01:56:34]} {[%emt 00:04:53]} Nb8
{[%clk 01:44:41]} {[%emt 00:01:58]} 9. h3 {[%clk 01:56:14]} {[%emt 00:00:35]}
Bxf3 {[%clk 01:44:07]} {[%emt 00:00:49]} 10. Bxf3 {[%clk 01:56:22]} {[%emt
00:00:07]} c6 {[%clk 01:44:20]} {[%emt 00:00:02]} 11. Be3 {[%clk 01:56:29]}
{[%emt 00:00:08]} Qc7 {[%clk 01:42:04]} {[%emt 00:02:30]} 12. O-O {[%clk
01:56:36]} {[%emt 00:00:07]} Nbd7 {[%clk 01:42:10]} {[%emt 00:00:10]} 13. a4
{[%clk 01:56:48]} {[%emt 00:00:03]} a5 {[%clk 01:28:38]} {[%emt 00:13:47]} 14.
Qe2 {[%clk 01:47:52]} {[%emt 00:09:10]} Rfc8 {[%clk 01:27:49]} {[%emt
00:01:04]} 15. g4 {[%clk 01:42:34]} {[%emt 00:05:34]} Nb6 {[%clk 01:23:44]}
{[%emt 00:04:20]} 16. g5 {[%clk 01:31:21]} {[%emt 00:11:27]} Nfd7 {[%clk
01:23:09]} {[%emt 00:00:50]} 17. dxc6 {[%clk 01:12:18]} {[%emt 00:19:19]} bxc6
{[%clk 01:21:32]} {[%emt 00:01:52]} 18. h4 {[%clk 01:08:16]} {[%emt 00:04:17]}
e6 {[%clk 01:21:09]} {[%emt 00:00:38]} 19. f5 {[%clk 01:01:14]} {[%emt
00:07:18]} exf5 {[%clk 01:15:36]} {[%emt 00:05:49]} 20. exf5 {[%clk 01:01:23]}
{[%emt 00:00:05]} Re8 {[%clk 01:15:40]} {[%emt 00:00:10]} 21. Rae1 {[%clk
00:59:01]} {[%emt 00:02:37]} d5 {[%clk 01:14:44]} {[%emt 00:01:11]} 22. fxg6
{[%clk 00:47:37]} {[%emt 00:11:39]} hxg6 {[%clk 01:14:04]} {[%emt 00:00:56]} 23.
Qf2 {[%clk 00:47:17]} {[%emt 00:00:35]} d4 {[%clk 01:06:30]} {[%emt 00:07:48]}
24. Be4 {[%clk 00:46:14]} {[%emt 00:01:19]} dxe3 {[%clk 00:53:00]} {[%emt
00:13:45]} 25. Qxf7+ {[%clk 00:46:12]} {[%emt 00:00:16]} Kh8 {[%clk 00:53:09]}
{[%emt 00:00:05]} 26. Rxe3 {[%clk 00:46:20]} {[%emt 00:00:08]} Qd6 {[%clk
00:46:24]} {[%emt 00:06:59]} 0-1

[Event "BPB Limburg Open 2019 Group A"]
[Site "Maastricht, Netherlands"]
[Date "2019.06.09"]
[Round "5.4"]
[White "Admiraal, Miguoel"]
[Black "Van Wely, Loek"]
[Result "0-1"]
[TimeControl "2h + 15 sec/move"]
[WhiteFideId "1019716"]
[BlackFideId "1000268"]
[WhiteElo "2507"]
[BlackElo "2604"]

1. c4 {[%clk 02:00:27]} {[%emt 00:00:01]} c5 {[%clk 01:55:07]} {[%emt
00:05:23]} 2. Nf3 {[%clk 01:58:22]} {[%emt 00:02:20]} Nc6 {[%clk 01:53:59]}
{[%emt 00:01:23]} 3. Nc3 {[%clk 01:56:43]} {[%emt 00:01:53]} g6 {[%clk
01:53:35]} {[%emt 00:00:40]} 4. e3 {[%clk 01:56:27]} {[%emt 00:00:31]} Nf6
{[%clk 01:53:41]} {[%emt 00:00:09]} 5. d4 {[%clk 01:56:38]} {[%emt 00:00:04]}
cxd4 {[%clk 01:53:48]} {[%emt 00:00:07]} 6. exd4 {[%clk 01:56:50]} {[%emt
00:00:04]} d5 {[%clk 01:53:56]} {[%emt 00:00:07]} 7. cxd5 {[%clk 01:56:28]}
{[%emt 00:00:36]} Nxd5 {[%clk 01:54:06]} {[%emt 00:00:05]} 8. Qb3 {[%clk
01:56:40]} {[%emt 00:00:04]} e6 {[%clk 01:54:12]} {[%emt 00:00:09]} 9. Bb5
{[%clk 01:55:23]} {[%emt 00:01:32]} Bg7 {[%clk 01:54:19]} {[%emt 00:00:08]} 10.
O-O {[%clk 01:38:19]} {[%emt 00:17:18]} O-O {[%clk 01:51:13]} {[%emt 00:03:21]}
11. Bxc6 {[%clk 01:35:18]} {[%emt 00:03:16]} bxc6 {[%clk 01:51:22]} {[%emt
00:00:06]} 12. Na4 {[%clk 01:32:48]} {[%emt 00:02:45]} Ba6 {[%clk 01:30:51]}
{[%emt 00:20:46]} 13. Re1 {[%clk 01:32:04]} {[%emt 00:00:59]} Nb6 {[%clk
01:30:55]} {[%emt 00:00:12]} 14. Nc5 {[%clk 01:03:24]} {[%emt 00:28:54]} Bc4
{[%clk 01:30:57]} {[%emt 00:00:12]} 15. Qc3 {[%clk 01:02:44]} {[%emt 00:00:55]}
Bd5 {[%clk 01:29:14]} {[%emt 00:01:59]} 16. Ne5 {[%clk 01:02:50]} {[%emt
00:00:09]} Nc8 {[%clk 01:22:00]} {[%emt 00:07:29]} 17. Bf4 {[%clk 00:53:40]}
{[%emt 00:09:25]} Nd6 {[%clk 01:18:21]} {[%emt 00:03:53]} 18. Rad1 {[%clk
00:33:53]} {[%emt 00:20:02]} Nf5 {[%clk 01:15:21]} {[%emt 00:03:15]} 19. Na6
{[%clk 00:21:56]} {[%emt 00:12:13]} Qb6 {[%clk 01:08:38]} {[%emt 00:06:58]} 20.
Nb4 {[%clk 00:21:29]} {[%emt 00:00:41]} Rfd8 {[%clk 00:58:51]} {[%emt
00:10:02]} 21. b3 {[%clk 00:09:07]} {[%emt 00:12:37]} Rac8 {[%clk 00:55:19]}
{[%emt 00:03:47]} 22. Nxd5 {[%clk 00:06:41]} {[%emt 00:02:41]} cxd5 {[%clk
00:53:55]} {[%emt 00:01:39]} 23. Qd3 {[%clk 00:05:14]} {[%emt 00:01:43]} Qa5
{[%clk 00:40:28]} {[%emt 00:13:42]} 24. Qd2 {[%clk 00:01:54]} {[%emt 00:03:35]}
Qa6 {[%clk 00:36:00]} {[%emt 00:04:43]} 25. Rc1 {[%clk 00:01:07]} {[%emt
00:01:01]} Qb6 {[%clk 00:34:17]} {[%emt 00:01:58]} 26. Rcd1 {[%clk 00:00:39]}
{[%emt 00:00:43]} Nd6 {[%clk 00:31:41]} {[%emt 00:02:51]} 27. Rc1 {[%clk
00:00:38]} {[%emt 00:00:16]} Qa6 {[%clk 00:26:04]} {[%emt 00:05:52]} 28. h3
{[%clk 00:00:37]} {[%emt 00:00:17]} Ne4 {[%clk 00:25:30]} {[%emt 00:00:48]} 29.
Qb2 {[%clk 00:00:26]} {[%emt 00:00:26]} g5 {[%clk 00:19:27]} {[%emt 00:06:18]}
30. Be3 {[%clk 00:00:30]} {[%emt 00:00:11]} h6 {[%clk 00:19:36]} {[%emt
00:00:06]} 31. a4 {[%clk 00:00:20]} {[%emt 00:00:26]} Nd6 {[%clk 00:17:53]}
{[%emt 00:01:57]} 32. Nf3 {[%clk 00:00:19]} {[%emt 00:00:16]} Rb8 {[%clk
00:17:00]} {[%emt 00:01:07]} 33. Rc2 {[%clk 00:00:16]} {[%emt 00:00:18]} Rb6
{[%clk 00:15:26]} {[%emt 00:01:49]} 34. Rec1 {[%clk 00:00:18]} {[%emt
00:00:14]} Rdb8 {[%clk 00:15:28]} {[%emt 00:00:13]} 35. Nd2 {[%clk 00:00:21]}
{[%emt 00:00:12]} Qxa4 {[%clk 00:12:16]} {[%emt 00:03:27]} 36. Rc7 {[%clk
00:00:32]} {[%emt 00:00:04]} a5 {[%clk 00:11:11]} {[%emt 00:01:21]} 37. h4
{[%clk 00:00:21]} {[%emt 00:00:26]} gxh4 {[%clk 00:10:47]} {[%emt 00:00:38]} 38.
Qc2 {[%clk 00:00:17]} {[%emt 00:00:19]} Qb4 {[%clk 00:10:08]} {[%emt 00:00:54]}
39. Ra7 {[%clk 00:00:17]} {[%emt 00:00:16]} 0-1